Cogmind - Beta 13 @@@ ROGUE MODE // 2024.04.11 @ 00:58:52 Player: Naiya55 Result: Destroyed by G-47 Trooper with Particle Gun Performance ------------- Evolutions (3) 1500 Regions Visited (6) 1200 Robots Destroyed (55) 275 Value Destroyed (1480) 1480 Prototype IDs (0) 0 Alien Tech Used (0) 0 Bonus (44) 44 TOTAL SCORE: 4499 Bonus ------- High Alert Combat Kills 44 Cogmind --------- Core Integrity 0/700 Matter 174/300 Energy 100/100 System Corruption 2% Temperature Cool (9) Movement Core (50) Location -7/Factory Parts ------- > --- POWER (2) -------- (None) > --- PROPULSION (4) --- (None) > --- UTILITY (4) ------ (None) > --- WEAPON (3) ------- (None) > --- INVENTORY (5) ---- Enhanced Nuclear Core Medium Storage Unit Medium Storage Unit Medium Storage Unit Minigun Peak State ------------ > --- POWER ------------ Light Angular Momentum Engine > --- PROPULSION ------- Aluminum Leg Aluminum Leg Aluminum Leg Titanium Leg > --- UTILITY ---------- Medium Storage Unit Power Shielding Reflective Plating > --- WEAPON ----------- Spread Laser Improved Grenade Launcher Improved Datajack > --- INVENTORY -------- Improved Ion Engine Light Nuclear Core Medium Storage Unit Medium Storage Unit Medium Storage Unit Medium Storage Unit Insulated Plating [Rating: 25] Favorites ----------- Power Improved Ion Engine Engine Improved Ion Engine Power Core Light Nuclear Core Propulsion Aluminum Leg Leg Aluminum Leg Utility Medium Storage Unit Device Heat Sink Storage Medium Storage Unit Processor Signal Interpreter Protection Power Shielding Weapon Assault Rifle Energy Gun Spread Laser Ballistic Gun Assault Rifle Ballistic Cannon Assault Cannon Launcher Improved Grenade Launcher Special Melee Weapon Improved Datajack Build | -11 -10 -10 -9 -9 -8 -7 ------- Run | Yrd Mat Min Mat Sto Mat Fac Slots Evolved 6 | . . . 2 . 2 2 Power 1 | . . . . . . 1 Propulsion 2 | . . . 1 . 1 . Utility 2 | . . . 1 . . 1 Weapon 1 | . . . . . 1 . Parts Attached 51 | 6 5 5 5 12 16 2 Power 7 | 1 1 1 1 1 1 1 Engine 6 | 1 1 1 1 1 1 . Core 1 | . . . . . . 1 Reactor . | . . . . . . . Propulsion 14 | 2 . 2 2 3 5 . Treads . | . . . . . . . Leg 14 | 2 . 2 2 3 5 . Wheel . | . . . . . . . Hover . | . . . . . . . Flight . | . . . . . . . Utility 16 | 1 3 1 2 4 4 1 Device 4 | 1 1 . . 1 1 . Storage 6 | . 1 . 1 2 1 1 Processor 1 | . 1 . . . . . Hackware . | . . . . . . . Protection 5 | . . 1 1 1 2 . Artifact . | . . . . . . . Weapon 14 | 2 1 1 . 4 6 . Energy Gun 2 | 1 . . . . 1 . Energy Cannon . | . . . . . . . Ballistic Gun 7 | 1 1 . . 2 3 . Ballistic Cannon 1 | . . 1 . . . . Launcher 3 | . . . . 2 1 . Special Weapon . | . . . . . . . Impact Weapon . | . . . . . . . Slashing Weapon . | . . . . . . . Piercing Weapon . | . . . . . . . Special Melee Weapon 1 | . . . . . 1 . Unidentified Prototypes . | . . . . . . . Parts Lost 26 | . . . . 10 15 1 Power 3 | . . . . 1 1 1 Propulsion 10 | . . . . 3 7 . Utility 5 | . . . . 3 2 . Weapon 8 | . . . . 3 5 . Highest Loss Streak 5 | . . . . 5 5 1 To Critical Strikes 1 | . . . . 1 . . Average Slot Usage (%) 83 | . 99 100 99 83 84 4 Engine 9 | . 14 14 11 11 7 . Leg 27 | . 28 28 33 29 29 . Device 3 | . 13 11 . 1 1 . Storage 14 | . 14 14 11 22 11 . Protection 8 | . . 2 21 5 11 . Energy Gun 3 | . 12 . . . 6 . Ballistic Gun 9 | . 15 25 11 5 5 . Ballistic Cannon 2 | . . 2 11 3 . . Launcher 2 | . . . . 3 7 . Special Melee Weapon 1 | . . . . . 3 . Naked Turns 94 | . . . . . 18 76 Heaviest Build 40 | 7 19 22 29 40 35 5 Greatest Support 47 | 20 20 20 30 30 47 3 Greatest Overweight (x) 2 | . . 1 . 2 2 1 Average Overweight (x) . | . . . . . . . Largest Inventory Capacity 10 | 5 10 10 10 10 10 10 Average Capacity 9 | 5 9 10 10 10 9 5 Most Carried 10 | 5 10 10 10 10 10 5 Average Carried 7 | 2 8 9 9 7 7 4 Final Capacity 10 | 5 10 10 10 10 5 5 Final Carried 10 | 5 10 10 10 8 5 5 Class Distribution -------------------- 57% | Scavenger-Mutant 34% | Mutant 5% | Tank Dominant Class ---------------- Mutant | -10/Materials Mutant | -10/Mines Scavenger-Mutant | -9/Materials Scavenger-Mutant | -9/Storage Scavenger-Mutant | -8/Materials Mutant | -7/Factory Resources | -11 -10 -10 -9 -9 -8 -7 ----------- Run | Yrd Mat Min Mat Sto Mat Fac Matter Collected 1231 | 269 201 32 193 256 220 60 Remotely . | . . . . . . . Salvage Created 1630 | 43 246 143 247 424 467 60 Parts 129 | 4 19 10 14 32 45 5 Haulers Intercepted 1 | . . . . . 1 . Recyclers Shooed 2 | . . . 1 1 . . Parts Field Recycled . | . . . . . . . Retrieved Matter . | . . . . . . . Parts Self-Destructed . | . . . . . . . Prevented . | . . . . . . . Kills | -11 -10 -10 -9 -9 -8 -7 ------- Run | Yrd Mat Min Mat Sto Mat Fac Combat Hostiles Destroyed 40 | 1 7 2 6 12 11 1 Melee 2 | . . . . 1 . 1 Guns 17 | 1 7 2 . 6 1 . Cannons 8 | . . . 6 2 . . AOE 13 | . . . . 3 10 . Classes Destroyed 10 | 1 5 . 2 . 2 . Worker 3 | . 1 . . . 2 . Builder 3 | . 1 . . . 2 . Tunneler 1 | . . . . . 1 . Hauler 1 | . . . . . 1 . Recycler 4 | . 1 1 . 1 1 . Watcher 3 | . 1 . . 1 1 . Swarmer 12 | . 6 . . 6 . . Grunt 14 | 1 1 2 2 1 6 1 Duelist 1 | . . . 1 . . . Sentry 13 | . . . 3 5 5 . Best Kill Streak 9 | 1 5 3 4 5 9 1 Combat Bots Only 4 | 1 3 2 4 3 4 1 Max Kills in Single Turn 3 | 1 1 1 1 1 3 1 Gunslinging . | . . . . . . . Exploded 1 | . . . . 1 1 . Melee 1 | . . . . 1 . 1 Uniques/NPCs Destroyed . | . . . . . . . Combat | -11 -10 -10 -9 -9 -8 -7 -------- Run | Yrd Mat Min Mat Sto Mat Fac Hostile Shots Fired 412 | 6 28 14 32 118 153 61 Missed 147 | 2 13 4 9 30 65 24 Damage Taken 4216 | 45 115 179 370 1162 1570 775 Core 1234 | 10 16 62 44 176 215 711 Absorbed by Shields . | . . . . . . . Redirected to Shielding 121 | . . . 74 25 22 . Ignored by Resistances 46 | . . . . . 46 . Regen/Repaired (Parts) 46 | . . . . 46 . . Core Remaining (%) 66 | 96 . 64 . 45 60 . Volleys Fired 118 | 3 17 8 12 48 30 . Largest 3 | 2 2 2 2 2 3 . Hottest 101 | 60 60 40 64 64 101 . Shots Fired 201 | 6 34 16 24 81 40 . Gun 146 | 6 34 16 12 65 13 . Cannon 25 | . . . 12 13 . . Launcher 30 | . . . . 3 27 . Special . | . . . . . . . Kinetic 147 | 3 17 16 24 78 9 . Thermal 24 | 3 17 . . . 4 . Explosive 30 | . . . . 3 27 . Electromagnetic . | . . . . . . . Robot Hit Streak 17 | 4 10 5 13 17 6 . Robot Miss Streak 4 | 2 2 1 1 4 3 . Penetration Max . | . . . . . . . Secondary Targets . | . . . . . . . Shots Hit Robots 112 | 4 19 11 22 33 23 . Core Hits 103 | 2 12 5 10 26 36 12 Critical Kills . | . . . . . . . Critical Parts Destroyed . | . . . . . . . Critical Strikes 1 | . . . . 1 . . Blast 1 | . . . . 1 . . Melee Attacks 1 | . . . . . 1 . Impact . | . . . . . . . Slashing . | . . . . . . . Piercing . | . . . . . . . Sneak Attacks 1 | . . . . . 1 . Combat Hostiles . | . . . . . . . Follow-up Attacks . | . . . . . . . Damage Inflicted 3086 | 51 237 120 423 694 1477 84 Guns 1034 | 51 237 120 123 390 113 . Cannons 474 | . . . 300 174 . . Explosions 1459 | . . . . 98 1361 . Melee . | . . . . . . . Ramming 119 | . . . . 32 3 84 Kinetic 1300 | 28 85 120 423 564 80 . Thermal 208 | 23 152 . . . 33 . Explosive 1459 | . . . . 98 1361 . Electromagnetic . | . . . . . . . Impact . | . . . . . . . Slashing . | . . . . . . . Piercing . | . . . . . . . Highest Corruption 2 | . . . . . 2 2 Average Corruption 2 | . . . . . 2 2 Corruption Purged . | . . . . . . . Corruption Blocked . | . . . . . . . Effects 5 | . . . . . 5 . Message Errors 1 | . . . . . 1 . Matter Fused 1 | . . . . . 1 . Energy Discharges 2 | . . . . . 2 . Data Loss (minor) 1 | . . . . . 1 . Overload Shots . | . . . . . . . Overflow Damage 61 | . . . . 19 42 . Projectiles 19 | . . . . 19 . . Explosions 42 | . . . . . 42 . Melee . | . . . . . . . Knockbacks 5 | . . . 2 2 . 1 Impact 1 | . . . . . . 1 Kinetic 4 | . . . 2 2 . . Secondary . | . . . . . . . Self-Inflicted Damage 264 | . . . . . 228 36 Shots 6 | . . . . . 6 . Rammed 32 | . . . . . . 32 Targets Rammed 44 | . . . . 11 1 32 Kicked 12 | . . . . 11 1 . Crushed . | . . . . . . . Highest Temperature 90 | 12 . . 90 40 81 . Average Temperature 24 | 10 . . 36 14 24 . Received Heat Transfer 1587 | 24 . 84 105 312 711 351 Siege Activations . | . . . . . . . Robots Corrupted . | . . . . . . . Combat Hostiles . | . . . . . . . Parts Fried . | . . . . . . . Impact Corruptions . | . . . . . . . Robots Melted . | . . . . . . . Combat Hostiles . | . . . . . . . Parts Melted 1 | . 1 . . . . . Heat Transferred 440 | 50 350 . . . 40 . Parts Sabotaged . | . . . . . . . Parts Stolen . | . . . . . . . Parts Stripped . | . . . . . . . Power Chain Reactions . | . . . . . . . Alert | -11 -10 -10 -9 -9 -8 -7 ------- Run | Yrd Mat Min Mat Sto Mat Fac Peak Influence 500 | 20 252 152 289 347 500 184 Initial 159 | . 13 97 59 121 108 159 Average 206 | 5 109 131 166 240 316 162 Maximum Alert Level 2 | . 1 . 1 1 2 . Low Security (%) 47 | 100 77 100 53 24 9 100 Level 1 45 | . 22 . 46 75 67 . Level 2 6 | . . . . . 23 . Level 3 . | . . . . . . . Level 4 . | . . . . . . . Level 5 . | . . . . . . . High Security . | . . . . . . . Max Security . | . . . . . . . Squads Dispatched 4 | . 1 . 1 1 1 . Investigation 1 | . . . . 1 . . Extermination . | . . . . . . . Reinforcement 3 | . 1 . 1 . 1 . Assault . | . . . . . . . Garrison . | . . . . . . . Intercept . | . . . . . . . Searches Triggered . | . . . . . . . Construction Impeded . | . . . . . . . Haulers Reinforced . | . . . . . . . Active Scanning Responses . | . . . . . . . Cargo Convoy Interrupts . | . . . . . . . Stealth | -11 -10 -10 -9 -9 -8 -7 --------- Run | Yrd Mat Min Mat Sto Mat Fac Distress Signals 6 | . 1 . 1 . 3 1 Communications Jammed . | . . . . . . . Distress Signals . | . . . . . . . Times Spotted 61 | 1 10 2 10 16 18 4 Peak Tracking Total 5 | 1 4 2 5 5 5 4 Tactical Retreats 2 | . . . 1 1 . . Traps | -11 -10 -10 -9 -9 -8 -7 ------- Run | Yrd Mat Min Mat Sto Mat Fac Traps Triggered 5 | . . . . 2 1 2 Indirectly . | . . . . . . . Trap Hack Attempts . | . . . . . . . Triggered . | . . . . . . . Disarmed . | . . . . . . . Reprogrammed . | . . . . . . . Reused . | . . . . . . . Traps Extracted . | . . . . . . . Installed . | . . . . . . . Triggered . | . . . . . . . Machines | -11 -10 -10 -9 -9 -8 -7 ---------- Run | Yrd Mat Min Mat Sto Mat Fac Machines Disabled 4 | . . . . 1 3 . Max in Single Turn 1 | . . . . 1 1 . Machines Repaired . | . . . . . . . Machines Dismantled . | . . . . . . . Machines Sabotaged . | . . . . . . . Overloaded Fab Kills . | . . . . . . . Hacking | -11 -10 -10 -9 -9 -8 -7 --------- Run | Yrd Mat Min Mat Sto Mat Fac Machines Accessed 4 | . . 1 2 1 . . Terminals 2 | . . . 2 . . . Fabricators . | . . . . . . . Repair Stations 1 | . . . . 1 . . Recycling Units . | . . . . . . . Scanalyzers . | . . . . . . . Garrison Access . | . . . . . . . Total Hacks 9 | . . 1 4 4 . . Successful 7 | . . 1 3 3 . . Failed 1 | . . . . 1 . . Catastrophic . | . . . . . . . Database Lockouts 1 | . . . 1 . . . Manual 2 | . . . 2 . . . Terminals 4 | . . . 4 . . . Fabricators . | . . . . . . . Repair Stations 4 | . . . . 4 . . Recycling Units . | . . . . . . . Scanalyzers . | . . . . . . . Garrison Access . | . . . . . . . Terminal Hacks 4 | . . 1 3 . . . Record 2 | . . . 2 . . . Open Door 1 | . . 1 . . . . Transport Status 1 | . . . 1 . . . Fabricator Hacks . | . . . . . . . Repair Station Hacks 3 | . . . . 3 . . Scan Component 2 | . . . . 2 . . Repair 1 | . . . . 1 . . Recycling Unit Hacks . | . . . . . . . Scanalyzer . | . . . . . . . Garrison Access Hacks . | . . . . . . . Unauthorized Hacks . | . . . . . . . Terminals . | . . . . . . . Fabricators . | . . . . . . . Repair Stations . | . . . . . . . Recycling Units . | . . . . . . . Scanalyzers . | . . . . . . . Garrison Access . | . . . . . . . Data Cores Recovered . | . . . . . . . Used . | . . . . . . . Hacking Detections 2 | . . . 1 1 . . Full Trace Events 1 | . . . . 1 . . Feedback Events . | . . . . . . . Feedback Blocked . | . . . . . . . Robot Schematics Acquired . | . . . . . . . Robots Built . | . . . . . . . Authchips . | . . . . . . . Time . | . . . . . . . Total Robot Build Rating . | . . . . . . . Part Schematics Acquired . | . . . . . . . Parts Built . | . . . . . . . Authchips . | . . . . . . . Time . | . . . . . . . Total Part Build Rating . | . . . . . . . Parts Repaired 1 | . . . . 1 . . Time 38 | . . . . 38 . . Parts Recycled . | . . . . . . . Recycled Matter . | . . . . . . . Retrieved Matter . | . . . . . . . Retrieved Components . | . . . . . . . Parts Scanalyzed . | . . . . . . . Part Schematics Acquired . | . . . . . . . Parts Damaged . | . . . . . . . Bothacking | -11 -10 -10 -9 -9 -8 -7 ------------ Run | Yrd Mat Min Mat Sto Mat Fac Used RIF Installer . | . . . . . . . Robots Hacked . | . . . . . . . Non-combat . | . . . . . . . Combat . | . . . . . . . Robot Hacks Applied . | . . . . . . . Relay Couplers Released . | . . . . . . . Fabnet Peak Effective % . | . . . . . . . Robots Rewired . | . . . . . . . Allies Hacked . | . . . . . . . Hacks Repelled . | . . . . . . . Allies | -11 -10 -10 -9 -9 -8 -7 -------- Run | Yrd Mat Min Mat Sto Mat Fac Total Allies . | . . . . . . . Largest Group . | . . . . . . . Highest-Rated Group . | . . . . . . . Highest-Rated Ally . | . . . . . . . Total Orders . | . . . . . . . Ally Attacks . | . . . . . . . Total Damage . | . . . . . . . Kills . | . . . . . . . Allies Corrupted . | . . . . . . . Allies Melted . | . . . . . . . Intel | -11 -10 -10 -9 -9 -8 -7 ------- Run | Yrd Mat Min Mat Sto Mat Fac Robot Analysis Total . | . . . . . . . Derelict Logs Recovered 1 | . . 1 . . . . Drone Launches . | . . . . . . . Drone Recoveries . | . . . . . . . Exploration | -11 -10 -10 -9 -9 -8 -7 ------------- Run | Yrd Mat Min Mat Sto Mat Fac Turns Passed 2656 | 129 341 256 370 651 716 193 Spaces Moved 1618 | 93 215 166 223 291 463 167 Core 224 | 19 . . . . 38 167 Treads . | . . . . . . . Legs 1394 | 74 215 166 223 291 425 . Wheels . | . . . . . . . Hover . | . . . . . . . Flight . | . . . . . . . Fastest Speed 50 | 50 120 120 120 120 50 50 Average Speed 125 | 105 120 130 120 157 128 82 Slowest Speed 260 | 120 120 190 120 260 260 100 Overloaded Moves . | . . . . . . . Propulsion Burnouts . | . . . . . . . Robots Hopped . | . . . . . . . Cave-ins Triggered . | . . . . . . . Exploration Rate (%) 26 | 7 30 38 14 45 45 7 Regions Visited 6 Branch Regions 2 Pre-discovered Areas . | . . . . . . . Known Exits Taken . | . . . . . . . Unknown Exits Taken 6 | 1 1 1 1 1 1 . Scrap Searched . | . . . . . . . Spaces Dug . | . . . . . . . Terrain Destroyed 204 | . . . . 34 170 . Melee . | . . . . . . . Projectile 2 | . . . . 2 . . AOE 202 | . . . . 32 170 . Terrain Rammed . | . . . . . . . Walls Destroyed . | . . . . . . . Machines Disabled . | . . . . . . . Actions | -11 -10 -10 -9 -9 -8 -7 --------- Run | Yrd Mat Min Mat Sto Mat Fac Total 2061 | 116 268 195 304 410 545 223 Wait 155 | 5 14 6 53 35 22 20 Move 1612 | 92 214 165 222 290 462 167 Hop . | . . . . . . . Pick Up 44 | 9 10 3 6 6 9 1 Fast Attach 19 | 3 2 2 . 3 9 . Attach 23 | 3 1 . 3 8 6 2 Detach 4 | . 2 . . 1 . 1 Swap 9 | . 2 3 2 1 1 . Drop 27 | 1 6 8 6 2 4 . Fire 118 | 3 17 8 12 48 30 . Melee 1 | . . . . . 1 . Ram 32 | . . . . . . 32 Kick 12 | . . . . 11 1 . Crush . | . . . . . . . Escape Stasis 5 | . . . . 5 . . Rewire . | . . . . . . . Trap . | . . . . . . . Miscellaneous . | . . . . . . . Route ------- -11/Scrapyard -10/Materials -10/Mines -9/Materials -9/Storage -8/Materials -7/Factory History --------- Turn | Location | Event 2 | -11/Scrapyard | Met Revision 17 67 | -11/Scrapyard | Discovered new exit (range 8) 130 | -11/Scrapyard | Entered Materials 300 | -10/Materials | Build established: Mutant 444 | -10/Materials | Discovered new exit (range 10) 471 | -10/Materials | Entered Mines 480 | -10/Mines | YI-UF0 nonchalantly dropped a Grenade Launcher on the ground 591 | -10/Mines | Learned Materials security intel 617 | -10/Mines | Discovered new exit (range 12) 662 | -10/Mines | Met a Derelict who couldn't figure out how to use a Trap Extractor 727 | -10/Mines | Entered Materials 727 | -9/Materials | Evolved 2 slots: Propulsion x1, Utility x1 846 | -9/Materials | Discovered new exit (range 15) 1057 | -9/Materials | Build established: Scavenger-Mutant 1088 | -9/Materials | Central database locked down 1097 | -9/Materials | Entered Storage 1353 | -9/Storage | Lost 4 parts (2n1u1w) 1356 | -9/Storage | Core integrity fell below 50% 1428 | -9/Storage | Lost 5 parts (1p1n1u2w) 1479 | -9/Storage | Discovered new exit (range 10) 1642 | -9/Storage | Repaired Imp. Grenade Launcher 1748 | -9/Storage | Entered Materials 1748 | -8/Materials | Evolved 2 slots: Propulsion x1, Weapon x1 2176 | -8/Materials | Lost 3 parts (1p1n1w) 2340 | -8/Materials | Lost 4 parts (1n1u2w) 2446 | -8/Materials | Released all parts (4) 2457 | -8/Materials | Discovered new exit (range 16) 2464 | -8/Materials | Entered Factory 2464 | -7/Factory | Evolved 2 slots: Power x1, Utility x1 2476 | -7/Factory | Lost 5 parts (2n1u2w) 2622 | -7/Factory | Core integrity fell below 50% 2646 | -7/Factory | Core integrity fell below 20% 2657 | -7/Factory | Destroyed by G-47 Trooper with Particle Gun Last Messages --------------- 02644_ Slammed into G-47 Trooper. 02644_ U-05 Engineer lays Concrete. 02645_ Slammed into G-47 Trooper. 02645_ Destabilizing: System corrupted (+2). 02645_ U-05 Engineer builds a Wall. 02646_ Slammed into G-47 Trooper. 02649_ G-47 Trooper destroyed. [Achievement: Fist Fight] 02650_ Acquired 60 matter. 02650_ U-05 Engineer lays Concrete. 02651_ Slammed into G-47 Trooper. 02652_ U-05 Engineer lays Concrete. 02652_ Slammed into G-47 Trooper. 02653_ U-05 Engineer lays Concrete. 02654_ Slammed into G-47 Trooper. 02654_ Destabilizing: Core damaged (-35). 02655_ Slammed into G-47 Trooper. 02655_ U-05 Engineer lays Concrete. 02656_ Slammed into G-47 Trooper. 02657_ U-05 Engineer lays Concrete. Map ----- +----------------------------------------------------+ | = # #????????????????????????????????????? | | # #????????????????????????????????????? | | = + +????????????????????????????????????? | | # #????????????????????????????????????? | | " """ # #????????????????????????????????????? | | " """ # #????????????????????????????????????? | | " """ # #????????????????????????????????????? | | # ###############??????????????????????? | | ####### #??????????????????????? | | ??????# #??????????????????????? | | ??????# #???##?????????????????? | | ??????# #?? ?????????????????? | | ??????# #? ?????????????????? | | ??????############### #? ""??????????????????? | | ????????????????????# # "???????????????????? | | ????????????????????# # ????????????????????? | | ???????############## + ?????????????????????? | | ?????? a# ???????????????????? | | ?????? #? "???????????????????? | | ?????? #??"???????????????????? | | ?????? #??????????????????????? | | ?????? #??????????????????????? | | ???????############## #??????????????????????? | | ????????? + #??????????????????????? | | ????????????"" """" # ####???????????????????? | | ???????????????"""" # g@## #######?????????????? | | ???????????????"""" # ! ! #?????????????? | | ???????????""" """" # [ = #?????????????? | | ???????# # #=*"""" #?????????????? | | ???????????""" """" # """" #?????????????? | | ?????????????" """" u + """" #?????????????? | | ?????????????? """" # # """" #?????????????? | | ???????????????"""" # # """" #?????????????? | | ??????????????? # # """"??#?????????????? | | ?????????????? # # ????????????????? | | ??????????????####### ####+##????????????????? | | ????????????????????# ??????????????????????? | | ????????????????????# ??????????????????????? | | ????????????????????# ?????????????????????? | | ????????????????????# ?????????????????????? | | ????????????????????# ????????????????????? | | ????????????????????#########????????????????????? | | ?????????????????????????????????????????????????? | | ?????????????????????????????????????????????????? | | ?????????????????????????????????????????????????? | | ?????????????????????????????????????????????????? | | ?????????????????????????????????????????????????? | | ?????????????????????????????????????????????????? | | ?????????????????????????????????????????????????? | | ?????????????????????????????????????????????????? | +----------------------------------------------------+ Best States ------------- Heat Dissipation 38 Energy Generation 18 Energy Capacity 350 Matter Stores 300 Matter Capacity 300 Sight Range 16 Terrain Scan Density 10 Armor Coverage 150 Resistance: TH 10 Resistance: EX 25 Power Shielding 33 Propulsion Shielding 66 Evasion (%) 55 Item Schematics ----------------- None Robot Schematics ------------------ None Fabricated ------------ Nothing Alien Tech Used ----------------- None Achievements -------------- Fist Fight Made in Tau Ceti IV Part-time Mechanic Remodeling Challenges ------------ None Game ------ Seed UtilityCoolingClaw Manual? 0 Play Time 00:37:06 Cumulative 1.8 hours Start 2024.04.11 @ 00:22:23 End 2024.04.11 @ 00:58:52 Sessions 1 Manual Loads 0 Difficulty Rogue Special Mode None Game No. 3 Rogue 3 Adventurer 0 Explorer 0 Win Type - Total 0 Types 0/0/0/0/0/0/0/0/0 Lore% 2 Gallery% 4 Achievement% 5 Wizard Run 0 Options --------- Layout 1 ASCII 0 Keyboard 0 Movement Vi Keybinds 0 Fullscreen 2 Font 24/Smallcaps Map View 50x35 Zoom Use 0% Tactical HUD 1 Map Filters NONE Filters NONE Steam 1 RUN: 4dbca492-88e6-4c50-8bb5-67aa4be59dbd